bitfinex-derivatives/quotes_ETHF0:USTF0_20250727
["timestamp","ask_amount","ask_price","bid_price","bid_amount"]
[1753633767370,0.52091,3838.1,3838.0,1.2818]
[1753633768472,1.03551,3838.1,3838.0,0.8399]
[1753633769071,0.52096,3837.7,3837.6,0.8884]
[1753633769266,0.52096,3837.7,3837.6,1.4606]
[1753633769473,0.5146,3838.6,3837.7,1.4606]
[1753633769670,0.52088,3838.3,3838.2,1.4606]
[1753633769866,1.30204,3838.8,3838.3,1.98148]
[1753633769867,0.4216,3838.8,3838.3,1.98148]
[1753633770175,0.52085,3838.6,3838.5,1.4606]
[1753633770375,1.45705,3838.6,3838.5,0.4352]
[1753633770573,1.84675771,3839.3,3838.5,3.2078]
[1753633770766,1.84675771,3839.6,3838.9,3.2078]
[1753633770972,1.84675771,3839.6,3839.0,1.4606]
[1753633771171,0.52074,3839.4,3839.2,0.52075]
[1753633771372,0.4216,3839.7,3839.4,1.52813]
[1753633771373,0.5146,3839.5,3839.4,1.52813]
[1753633771572,0.5146,3839.5,3839.4,1.98133]
[1753633771779,1.03532,3839.5,3839.4,1.4606]
[1753633772371,1.03531,3839.6,3839.5,0.4352]
[1753633773276,0.52076,3839.2,3839.1,1.09296]
[1753633773477,0.5146,3839.2,3839.1,1.52816]
[1753633773678,0.2,3839.9,3839.6,0.4532]
[1753633773978,0.9362,3839.6,3839.5,0.95592]
[1753633774179,0.9362,3839.5,3839.4,0.52072]
[1753633774779,0.5146,3839.5,3839.4,1.52812]
[1753633774977,4.50933,3840.4,3839.4,1.52812]
[1753633774978,0.4216,3840.8,3839.9,0.5722]
[1753633775181,0.9362,3840.4,3840.3,0.5206]
[1753633775383,0.9362,3840.4,3840.3,0.9558]
[1753633775576,0.9362,3840.3,3839.7,3.2078]
[1753633775777,5.0,3840.4,3839.7,3.2078]
[1753633775778,1.45688,3839.8,3839.7,3.2078]
[1753633776179,0.5146,3839.8,3839.7,4.2152]
[1753633776382,0.5146,3840.0,3839.8,1.0074]
[1753633776582,0.5146,3840.0,3839.8,1.52808]
[1753633776784,0.52062,3840.2,3840.0,1.0254]
[1753633776977,0.52062,3840.2,3840.1,0.4352]
[1753633777176,0.52062,3840.2,3840.0,0.5722]
[1753633777177,0.52064,3840.1,3840.0,0.5722]
[1753633777579,0.5127,3840.0,3839.7,4.75388]
[1753633777783,3.2078,3840.5,3840.1,0.4352]
[1753633777981,0.5127,3841.2,3839.8,0.4532]
[1753633777982,0.52059,3840.4,3840.3,0.5722]
[1753633778176,0.52064,3840.1,3839.8,1.0254]
[1753633778379,0.5127,3840.0,3839.9,1.0074]
[1753633778587,1.21445462,3840.0,3839.9,1.98126]
[1753633778784,1.21445462,3840.0,3839.9,1.4606]
[1753633779089,1.73510462,3840.0,3839.9,1.4606]
[1753633779285,0.9343,3839.9,3839.2,0.4532]
[1753633779481,0.5127,3839.7,3839.4,1.98132]
[1753633779788,0.5127,3839.5,3839.4,0.4352]
[1753633779986,1.73517462,3839.5,3839.4,1.0074]
[1753633780187,0.70175462,3839.5,3839.4,1.4606]
[1753633780592,1.22247462,3839.5,3839.4,1.4606]
[1753633780785,0.70175462,3839.5,3839.1,0.4352]
[1753633781089,1.03346,3839.2,3839.1,0.4352]
[1753633781285,1.73521462,3839.2,3839.1,0.4352]
[1753633781782,1.22251462,3839.2,3839.1,1.0074]
[1753633782388,0.5127,3839.0,3838.4,1.0254]
[1753633782583,1.38911386,3838.8,3838.4,1.4606]
[1753633782888,1.73528462,3838.7,3838.6,1.4606]
[1753633783189,0.52087,3838.4,3838.3,1.4606]
[1753633783491,0.5127,3838.8,3838.5,1.4606]
[1753633783690,1.20671383,3838.7,3838.6,1.4606]
[1753633783884,1.71941383,3838.7,3838.6,0.4352]
[1753633784579,1.10749383,3838.7,3838.2,3.2078]
[1753633784781,0.52088,3838.4,3838.3,1.4606]
[1753633785184,1.20677383,3838.4,3838.3,1.4606]
[1753633785490,1.71947383,3838.4,3838.3,1.0074]
[1753633785887,0.5127,3838.1,3838.0,0.4352]
[1753633786088,2.69126386,3838.5,3837.9,1.0254]
[1753633786089,1.20679383,3838.2,3837.9,1.4606]
[1753633786288,1.20680383,3838.1,3837.9,0.52093]
[1753633786496,0.52091,3838.1,3838.0,1.4606]
[1753633786890,1.72022453,3838.1,3838.0,1.4606]
[1753633787095,0.68661453,3838.1,3838.0,1.4606]
[1753633787386,0.52093,3838.0,3837.8,3.92155629]
[1753633787688,0.68661453,3837.9,3837.8,3.92155629]
[1753633787894,1.20754453,3837.9,3837.8,4.86121629]
[1753633788691,0.68661453,3837.9,3837.8,5.38216629]
[1753633788989,0.52091,3838.1,3838.0,1.4606]
[1753633789192,1.72049456,3838.1,3838.0,1.4606]
[1753633789396,0.52093,3837.9,3837.8,3.40061629]
[1753633789596,1.72051456,3837.9,3837.8,3.83581629]
[1753633789797,1.72051456,3837.9,3837.8,4.86121629]
[1753633789997,2.14211456,3837.9,3837.8,3.83581629]
[1753633790197,2.14211456,3837.9,3837.8,0.19281629]
[1753633791000,10.34991456,3837.9,3837.8,0.19281629]
[1753633791295,11.73902842,3837.9,3837.8,0.19281629]
[1753633791491,5.34991456,3837.9,3837.8,0.19281629]
[1753633792299,10.34991456,3837.9,3837.8,0.19281629]
[1753633792496,5.34991456,3837.9,3837.8,0.19281629]
[1753633793101,4.92831456,3837.9,3837.8,1.65341629]
[1753633793290,0.68688456,3837.9,3837.8,1.65341629]
[1753633793495,0.68688456,3837.9,3837.8,0.71376629]
[1753633794095,1.39914629,3838.1,3837.9,0.52093]
[1753633794304,1.20919176,3838.0,3837.9,1.4606]
[1753633794503,1.72189176,3838.0,3837.9,1.4606]
[1753633795308,0.68827176,3838.0,3837.9,1.98153]
[1753633796006,0.68826584,3838.0,3837.9,0.52093]
[1753633796607,0.68826584,3838.0,3837.8,0.19281629]
[1753633796812,1.03362,3838.0,3837.9,1.4606]
[1753633797008,1.72195561,3838.0,3837.9,1.4606]
[1753633797409,2.14355561,3838.0,3837.9,1.0074]
[1753633798413,1.20925561,3838.0,3837.9,1.4645]
[1753633799209,1.01912,3838.0,3837.9,1.4645]
[1753633799514,1.70753041,3838.0,3837.9,1.4645]
[1753633799914,1.01912,3838.0,3837.9,1.4645]
[1753633800115,1.70753544,3838.0,3837.9,1.4645]
[1753633800414,1.44383,3837.9,3837.8,0.19281629]
[1753633800611,2.13224544,3837.9,3837.8,0.19281629]
[1753633800806,2.13224544,3837.9,3837.8,0.63911629]
[1753633801115,1.20934544,3837.9,3837.8,1.68151629]
[1753633801318,0.52093,3837.9,3837.8,0.71375629]
[1753633801507,0.4982,3838.2,3837.8,0.19281629]
[1753633801713,1.20919984,3838.1,3837.9,0.52093]
[1753633801913,0.52089,3838.3,3838.0,1.4887]
[1753633802113,0.6882686,3838.2,3838.1,2.0096]
[1753633803214,3.2078,3838.4,3838.3,0.52088]
[1753633803419,3.89600978,3838.4,3838.3,1.4887]
[1753633803720,0.68820978,3838.4,3838.3,2.00958]
[1753633803910,0.68820978,3838.4,3838.3,3.45655797]
[1753633804319,0.68820978,3838.4,3838.3,2.00958]
[1753633805020,0.22180978,3838.4,3838.3,2.00958]
[1753633805221,3.2078,3839.0,3838.9,0.5208]
[1753633805422,3.2078,3839.0,3838.9,2.0095]
[1753633805622,0.52075,3839.3,3839.2,0.4463]
[1753633805924,1.01895,3839.3,3839.2,1.0316]
[1753633806316,1.44165,3839.3,3839.2,1.0316]
[1753633807518,1.86635,3839.3,3839.2,0.4463]
[1753633808317,1.86635,3839.3,3839.2,1.0316]
[1753633809619,1.86635,3839.3,3839.2,0.4463]
[1753633810320,0.6877,3839.0,3838.9,1.4174]
[1753633810520,0.6877,3839.0,3838.2,2.4688]
[1753633810521,0.52088,3838.3,3838.2,2.4688]
[1753633810926,1.72482,3838.6,3837.7,4.65477797]
[1753633810927,0.52093,3838.0,3837.9,1.0316]
[1753633811228,0.52093,3838.0,3837.9,2.0117]
[1753633811424,1.44183,3838.0,3837.9,1.4887]
[1753633811731,1.86653,3838.0,3837.9,1.0316]
[1753633812619,0.52093,3837.9,3837.7,3.72876]
[1753633812823,1.86653,3837.9,3837.4,1.0316]
[1753633813323,1.86653,3837.9,3837.8,1.22441629]
[1753633813521,1.86653,3837.9,3837.8,0.63911629]
[1753633813716,1.44183,3837.9,3837.8,0.63911629]
[1753633813925,0.52093,3837.9,3837.8,1.68151629]
[1753633814128,3.2078,3838.2,3837.8,1.68151629]
[1753633814426,0.52091,3838.1,3838.0,1.4887]
[1753633815327,3.7287,3838.2,3838.0,2.00962]
[1753633815522,0.52091,3838.1,3837.9,0.52093]
[1753633816027,0.52092,3838.1,3837.8,0.19281629]
[1753633816329,0.52092,3838.1,3838.0,1.4887]
[1753633816927,0.94362,3838.1,3838.0,1.4887]
[1753633817419,0.52092,3838.1,3838.0,2.00962]
[1753633817615,0.94359,3838.3,3838.2,1.4887]
[1753633817820,0.52089,3838.3,3838.2,1.4887]
[1753633818422,0.94359,3838.3,3838.2,1.4887]
[1753633819426,1.44179,3838.3,3838.2,1.4887]
[1753633819824,2.12491898,3838.3,3838.2,1.4887]
[1753633820222,2.12491898,3838.3,3837.8,0.19281629]
[1753633820529,3.2078,3838.8,3837.8,0.19281629]
[1753633820530,1.86653,3837.9,3837.8,1.22441629]
[1753633820721,0.9209,3837.9,3837.8,1.68151629]
[1753633820926,0.52093,3838.0,3837.9,0.52093]
[1753633821129,0.52091,3838.1,3838.0,1.56331]
[1753633821330,0.52093,3838.1,3838.0,1.4887]
[1753633821527,0.94363,3838.1,3838.0,1.4887]
[1753633821730,1.44183,3838.1,3838.0,1.4887]
[1753633822932,2.40333,3838.1,3838.0,2.4688]
[1753633824031,38.91514629,3840.4,3837.8,0.19281629]
[1753633824032,2.82806,3837.9,3837.8,0.19281629]
[1753633824932,2.82806,3837.9,3837.8,0.63911629]
[1753633826035,3.47362013,3837.9,3837.8,0.63911629]
[1753633826440,3.47362013,3837.9,3837.8,1.22441629]
[1753633826636,1.90516,3837.9,3837.8,3.18259629]
[1753633827031,1.3842,3837.9,3837.8,3.18259629]
[1753633827230,0.5832,3837.9,3837.8,3.18259629]
[1753633827432,1.10416,3837.9,3837.8,2.66161629]
[1753633827631,2.43546,3837.9,3837.8,2.66161629]
[1753633828434,2.85496,3837.9,3837.8,0.19281629]
[1753633828740,3.50040541,3837.9,3837.8,0.19281629]
[1753633829842,2.85496,3837.9,3837.8,0.19281629]
[1753633836441,2.85496,3837.9,3837.3,2.4087]
[1753633836442,2.87303,3837.4,3837.3,2.4087]
[1753633836945,2.45353,3837.4,3837.3,2.4087]
[1753633839036,2.87303,3837.4,3837.3,1.9572]
[1753633839239,1.50389,3837.0,3836.9,0.4308]
[1753633839446,2.87309,3837.0,3836.9,0.4308]
[1753633840546,2.87309,3837.0,3836.9,1.9572]
[1753633840745,2.87309,3837.0,3836.9,2.4087]
[1753633841637,2.87309,3837.0,3836.9,0.7222]
[1753633841942,2.45363,3836.7,3836.6,2.4087]
[1753633842136,4.93004,3837.0,3835.8,0.19291682]
[1753633842137,1.96998,3836.3,3836.2,2.4087]
[1753633842336,0.52117,3836.4,3836.3,2.1173]
[1753633842543,0.52117,3836.4,3836.3,2.4087]
[1753633843150,1.96997,3836.4,3836.3,2.4087]
[1753633843345,2.45367,3836.4,3836.3,2.4087]
[1753633844441,1.58977,3836.4,3836.3,2.4087]
[1753633844752,3.72891,3836.8,3836.7,0.9373]
[1753633844946,3.72891,3836.8,3836.7,2.4087]
[1753633845948,4.02071,3836.8,3836.7,2.4087]
[1753633846149,4.48711,3836.8,3836.7,2.4087]
[1753633846344,4.79791,3836.8,3836.7,2.4087]
[1753633846555,5.17811,3836.8,3836.7,2.4087]
[1753633846953,5.65731,3836.8,3836.7,2.4087]
[1753633847656,2.44951,3836.8,3836.7,2.4087]
[1753633848957,2.86901,3836.8,3836.7,1.9572]
[1753633849251,2.3479,3836.8,3836.4,0.4515]
[1753633849456,2.86905,3836.5,3836.4,1.9572]
[1753633849852,0.81302,3836.0,3835.9,0.8805]
[1753633850162,2.44962,3836.0,3835.9,2.4087]
[1753633850455,0.52122,3836.0,3835.9,2.4087]
[1753633850654,4.19535,3836.5,3836.4,0.9373]
[1753633850854,0.52115,3836.5,3836.4,2.4087]
[1753633853654,24.8698,3837.3,3837.0,2.4087]
[1753633853655,3.6742,3837.3,3837.0,2.4087]
[1753633853856,0.52106,3837.2,3837.1,2.4087]
[1753633854055,1.97026,3837.2,3837.1,2.4087]
[1753633854249,2.44946,3837.2,3837.1,2.4087]
[1753633855053,1.97026,3837.2,3837.1,2.4087]
[1753633855652,0.52106,3837.2,3837.1,2.4087]
[1753633857252,4.1906,3837.8,3837.7,0.9373]
[1753633857560,5.65718,3837.8,3837.7,2.4087]
[1753633857755,1.50378,3837.8,3837.7,2.4087]
[1753633857952,0.81278,3837.8,3837.7,2.4087]
[1753633858552,0.52098,3837.8,3837.7,2.4087]
[1753633858752,14.394,3839.1,3837.7,2.4087]
[1753633858753,3.2078,3839.0,3838.1,0.9331]
[1753633858961,3.72856,3839.4,3839.3,2.3602]
[1753633859854,0.52076,3839.4,3839.3,2.3602]
[1753633860257,1.64151,3839.0,3838.9,1.933]
[1753633860757,0.52081,3839.0,3838.9,1.933]
[1753633861358,0.52081,3839.0,3838.9,6.933]
[1753633861563,4.84922,3839.7,3839.6,0.9331]
[1753633861761,4.84922,3839.7,3839.6,1.933]
[1753633862452,2.28414,3839.4,3839.0,0.2794]
[1753633862661,2.8803,3839.1,3839.0,0.9331]
[1753633863160,1.4779,3839.1,3839.0,2.3602]
[1753633863365,1.1069,3839.1,3839.0,2.3602]
[1753633863758,0.7989,3839.1,3839.0,2.3602]
[1753633864657,0.52088,3838.5,3838.4,0.9331]
[1753633864850,1.30198,3839.3,3838.4,0.9331]
[1753633865056,0.52085,3838.8,3838.7,0.9331]
[1753633865359,0.52085,3838.8,3838.7,2.3602]
[1753633866259,0.52084,3838.8,3838.7,0.9331]
[1753633866761,0.52084,3838.8,3838.7,2.3602]
[1753633868362,0.52078,3839.3,3839.2,2.3602]
[1753633869061,0.5598,3839.8,3839.4,0.2794]
[1753633869263,2.88021,3839.8,3839.7,1.1825]
[1753633869462,3.4078,3839.9,3839.3,0.5378]
[1753633869463,2.3595,3839.6,3839.3,0.5378]
[1753633869664,1.90023,3839.6,3839.5,0.6447]
[1753633869867,1.90023,3839.6,3839.5,1.1825]
[1753633870055,2.32043,3839.6,3839.5,1.1825]
[1753633870261,2.88023,3839.6,3839.5,1.1825]
[1753633870460,2.88023,3839.6,3839.5,1.4709]
[1753633870667,2.88023,3839.6,3839.5,2.3602]
[1753633871261,0.9571,3839.7,3839.6,1.8224]
[1753633871464,0.5861,3839.7,3839.6,2.3602]
[1753633871667,1.10682,3839.7,3839.6,2.3602]
[1753633871862,0.52072,3839.8,3839.6,2.3602]
[1753633872064,0.00750554,3841.0,3839.9,1.30174]
[1753633872360,0.52804554,3841.0,3840.9,0.9999]
[1753633872560,1.93044554,3841.0,3840.9,0.5378]
[1753633872766,1.40990554,3841.0,3840.9,0.9999]
[1753633872965,1.40990554,3841.0,3840.9,1.3132]
[1753633872966,0.00750554,3841.0,3840.9,1.3132]
[1753633873469,0.00750554,3841.0,3840.9,1.83376]
[1753633873868,0.00750554,3841.0,3840.9,6.83376]
[1753633874264,0.52045,3841.8,3840.9,5.0]
[1753633874467,0.52045,3841.7,3841.6,0.5378]
[1753633874772,0.4202,3841.8,3841.7,0.9999]
[1753633874965,0.94064,3841.8,3841.7,0.9999]
[1753633875267,0.4202,3842.6,3842.0,0.9999]
[1753633875468,3.2258,3843.3,3842.0,0.9999]
[1753633875469,3.2078,3843.7,3842.7,0.1256]
[1753633875669,0.4202,3844.6,3843.8,0.1256]
[1753633875868,0.4224,3845.1,3844.6,0.5378]
[1753633875869,0.98,3844.9,3844.6,0.5378]
[1753633876062,1.4024,3845.0,3844.8,0.5378]
[1753633876269,0.4202,3844.9,3844.7,0.6634]
[1753633876464,0.94024,3844.7,3844.6,0.6634]
[1753633876665,1.92244,3844.7,3844.6,0.6634]
[1753633876866,5.8523,3844.7,3843.7,3.2078]
[1753633877068,1.36278,3843.7,3843.6,3.2078]
[1753633877372,1.36278,3843.7,3843.3,0.1256]
[1753633877373,0.4224,3843.7,3843.3,0.1256]
[1753633877673,0.94041,3843.5,3843.4,3.8712]
[1753633878274,1.92261,3843.5,3843.4,3.3334]
[1753633878475,1.92261,3843.5,3843.4,3.8712]
[1753633879469,0.94041,3843.5,3843.4,3.8712]
[1753633879663,0.94037,3843.8,3843.6,0.6634]
[1753633879871,0.4202,3844.2,3843.8,0.1256]
[1753633880073,0.5598,3844.8,3844.2,0.5378]
[1753633880274,0.94023,3844.8,3844.7,3.8712]
[1753633880871,1.92243,3844.8,3844.7,3.3334]
[1753633881169,0.4202,3844.8,3844.7,3.8712]
[1753633881379,0.94023,3844.8,3844.7,3.8712]
[1753633881575,1.92243,3844.8,3844.7,3.2078]
[1753633881774,1.92243,3844.8,3844.3,0.6634]
[1753633881775,0.52008,3844.4,3844.3,0.6634]
[1753633881980,3.4871,3844.8,3844.3,0.6634]
[1753633881981,0.8426,3844.8,3844.3,0.6634]
[1753633882270,0.2,3845.9,3844.9,0.1256]
[1753633882472,0.2,3845.9,3845.6,0.5378]
[1753633882667,0.2,3845.9,3845.8,1.1833]
[1753633882865,0.4224,3847.0,3845.9,0.6634]
[1753633883064,0.94213,3847.0,3846.9,3.2078]
[1753633883265,1.05231962,3847.0,3846.9,3.8712]
[1753633883467,1.57204962,3847.0,3846.9,3.2078]
[1753633883664,1.14964962,3847.0,3846.9,3.8712]
[1753633883872,0.51973,3847.0,3846.9,3.8712]
[1753633884070,0.9422,3846.5,3846.4,3.2078]
[1753633884272,0.51991,3845.7,3845.6,3.2078]
[1753633884469,0.4202,3846.4,3845.7,0.5378]
[1753633884670,0.4224,3847.0,3846.4,0.5378]
[1753633884869,0.62899171,3846.9,3846.7,3.2078]
[1753633885074,0.62899171,3846.9,3846.2,0.2202]
[1753633885075,1.07963,3846.3,3846.2,3.428]
[1753633885372,0.51991,3845.7,3845.6,3.2078]
[1753633885573,4.14661,3845.7,3845.6,3.2078]
[1753633885766,0.51999,3845.1,3845.0,3.2078]
[1753633886172,0.51999,3845.1,3845.0,3.7456]
[1753633886366,0.4202,3845.1,3845.0,4.2077]
[1753633886876,1.29962,3846.2,3845.4,1.29987]
[1753633886877,3.2078,3846.2,3845.4,1.29987]
[1753633887075,0.51975,3846.9,3846.4,0.9999]
[1753633887274,0.51975,3846.9,3846.8,3.2078]
[1753633887472,3.2078,3847.6,3846.8,4.0971]
[1753633887777,0.51971,3847.2,3846.9,1.6753]
[1753633887973,0.51972,3847.1,3846.8,3.8637]
[1753633888178,2.6445,3847.0,3846.8,3.2078]
[1753633888478,2.6445,3847.4,3846.9,1.6753]
[1753633888778,0.51971,3847.2,3847.1,1.0194]
[1753633888965,0.51971,3847.2,3847.1,1.6753]
[1753633889168,0.51968,3847.4,3846.9,1.6753]
[1753633889372,0.51969,3847.4,3847.2,3.8637]
[1753633889671,2.18319,3847.3,3847.2,3.2078]
[1753633889871,0.51971,3847.2,3846.9,1.0194]
[1753633890073,0.51968,3847.4,3847.0,1.6753]
[1753633890273,0.51968,3847.4,3847.3,1.6753]
[1753633890767,0.51972,3847.1,3846.9,1.6753]
[1753633890971,1.6635,3847.1,3847.0,3.2078]
[1753633891167,1.6635,3847.8,3847.1,0.6559]
[1753633891370,1.6635,3847.8,3847.0,9.2272]
[1753633891371,0.51968,3847.4,3847.2,0.6559]
[1753633891571,3.2958,3847.7,3847.0,3.2078]
[1753633891776,0.51965,3847.6,3847.5,3.8637]
[1753633891980,2.18315,3847.6,3847.5,3.2078]
[1753633892171,7.10969,3847.6,3847.5,3.2078]
[1753633892373,0.51971,3847.2,3847.1,3.2078]
[1753633892574,2.18321,3847.2,3847.1,3.2078]
[1753633893375,4.82771,3847.2,3847.1,3.2078]
[1753633893571,4.82771,3847.2,3844.8,2.60017]
[1753633893572,1.1451,3846.9,3846.7,0.6559]
[1753633893775,0.51977,3846.7,3846.6,3.2078]
[1753633893978,0.4938,3846.8,3846.7,1.6753]
[1753633893979,3.1383,3846.8,3846.7,1.6753]
[1753633894483,4.17646,3846.8,3846.7,1.6753]
[1753633894680,1.01357,3846.7,3846.6,3.2078]
[1753633894881,4.82777,3846.7,3846.6,3.2078]
[1753633895074,7.10981,3846.7,3846.6,3.2078]
[1753633895270,2.18334,3846.2,3846.1,3.2078]
[1753633895476,4.82784,3846.2,3846.1,3.2078]
[1753633895775,2.18341,3845.7,3845.6,3.2078]
[1753633896081,1.29966,3846.1,3845.2,3.2078]
[1753633896082,3.16446,3845.3,3845.2,3.2078]
[1753633896283,4.308,3845.3,3845.2,3.2078]
[1753633896583,7.11,3845.3,3845.2,3.2078]
[1753633896980,2.18352,3844.9,3844.8,3.2078]
[1753633897277,4.82802,3844.9,3844.8,3.2078]
[1753633897478,1.0122,3845.2,3844.9,1.6753]
[1753633897675,1.6635,3844.9,3844.8,3.2078]
[1753633897877,4.82802,3844.9,3844.8,3.2078]
[1753633898078,7.11006,3844.9,3844.8,3.2078]
[1753633898277,1.53227,3844.5,3844.4,0.6559]
[1753633898584,4.17677,3844.5,3844.4,3.8637]
[1753633898778,4.17677,3844.5,3844.4,3.2078]
[1753633898779,4.82807,3844.5,3844.4,3.2078]
[1753633898976,1.30024,3844.4,3844.0,3.2078]
[1753633899177,2.18363,3844.1,3844.0,3.2078]
[1753633899371,1.30024,3844.4,3844.0,3.2078]
[1753633899372,2.6445,3844.2,3844.0,4.8831]
[1753633899682,0.52003,3844.9,3844.3,1.1668]
[1753633899879,2.6445,3844.7,3844.6,1.6753]
[1753633900182,2.6445,3844.7,3844.6,2.19536]
[1753633900383,2.6445,3844.7,3842.4,3.2078]
[1753633900384,1.1451,3843.3,3842.4,3.2078]
[1753633900588,1.1451,3843.3,3842.6,1.67256484]
[1753633900589,1.6635,3843.3,3842.6,1.67256484]
[1753633900883,0.4938,3843.8,3843.2,3.2078]
[1753633901083,1.6635,3843.3,3842.5,3.2078]
[1753633901285,3.8142,3842.6,3842.5,3.2078]
[1753633901482,1.30101,3842.1,3841.4,3.2078]
[1753633901781,3.1383,3841.2,3840.6,3.2078]
[1753633901982,0.4938,3842.0,3841.1,3.2078]
[1753633902178,0.52044,3841.8,3841.5,3.2078]
[1753633902374,3.16499,3841.4,3841.0,1.1644]
[1753633902579,2.6445,3841.4,3841.1,1.1644]
[1753633902879,0.52049,3841.4,3841.3,1.1644]
[1753633903079,0.52049,3841.4,3841.0,3.2078]
[1753633903080,2.6445,3841.3,3841.0,3.7187]
[1753633903282,1.6635,3841.0,3840.2,4.39042798]
[1753633903484,0.52064,3840.4,3840.3,1.1644]
[1753633903678,0.52064,3840.4,3840.2,3.22602798]
[1753633903679,3.16514,3840.3,3840.2,3.22602798]
[1753633903991,4.308,3840.3,3840.2,0.01822798]
[1753633904582,0.4938,3840.7,3840.6,0.5206]
[1753633904782,3.1383,3840.7,3840.6,4.3722]
[1753633904985,3.1383,3840.7,3840.6,4.8928]
[1753633905186,3.1383,3840.7,3840.6,3.7284]
[1753633905684,0.4938,3841.2,3840.7,1.1644]
[1753633905983,1.6635,3841.7,3841.1,4.3722]
[1753633906186,0.5184,3841.7,3841.1,4.3722]
[1753633906387,3.1383,3841.2,3841.0,0.52054]
[1753633906688,2.6445,3840.9,3840.8,0.52057]
[1753633906985,2.6445,3840.9,3840.8,1.68497]
[1753633907181,0.4938,3841.1,3841.0,0.52055]
[1753633907382,3.2078,3841.6,3841.5,0.52048]
[1753633907580,0.4938,3841.5,3841.4,0.52049]
[1753633907783,3.2078,3842.1,3841.5,1.68488]
[1753633907981,1.0122,3842.0,3841.9,0.52042]
[1753633908183,3.2078,3842.8,3841.8,3.2078]
[1753633908382,1.6635,3842.7,3842.3,0.52036]
[1753633908584,0.52032,3842.7,3842.3,0.52036]
[1753633908791,4.308,3842.4,3841.8,3.2078]
[1753633909091,3.1383,3842.1,3842.0,0.52041]
[1753633909486,0.4938,3842.7,3842.6,0.52033]
[1753633909691,3.2078,3842.8,3842.7,0.52031]
[1753633909891,3.72797,3843.8,3842.7,4.3722]
[1753633910092,2.6445,3843.2,3842.7,3.2078]
[1753633910288,0.4938,3842.7,3842.2,3.2078]
[1753633910590,3.1383,3842.4,3842.3,0.52037]
[1753633910982,4.308,3842.4,3842.3,0.52037]
[1753633911182,3.1383,3842.4,3842.3,1.17627]
[1753633911892,1.1697,3842.9,3841.9,1.30105]
[1753633912093,1.6635,3842.9,3842.8,0.5203]
[1753633912289,4.308,3842.9,3842.8,0.5203]
[1753633913094,3.7016,3843.7,3842.8,9.8831]
[1753633913389,3.1629,3843.3,3843.2,0.52025]
[1753633913582,3.8142,3843.3,3843.2,0.52025]
[1753633913782,1.1697,3843.3,3843.2,0.52025]
[1753633913982,1.6635,3843.3,3843.2,0.52025]
[1753633914188,1.6635,3843.3,3842.5,4.50863]
[1753633914189,1.6635,3843.2,3842.3,1.1644]
[1753633914494,2.6445,3842.8,3842.7,0.52031]
[1753633915088,3.1383,3842.8,3842.7,0.52031]
[1753633915491,0.4938,3842.7,3842.4,1.1644]
[1753633915684,4.22,3843.3,3842.6,1.1644]
[1753633915890,0.4938,3842.8,3842.7,0.52031]
[1753633916084,4.3529,3843.7,3843.0,0.6559]
[1753633916286,2.6445,3843.2,3842.6,23.5509]
[1753633916598,3.6567,3843.2,3843.1,0.52026]
[1753633917093,3.8142,3843.2,3842.6,3.8637]
[1753633917293,0.4938,3843.1,3843.0,0.52027]
[1753633917488,0.4938,3843.6,3843.4,0.52022]
[1753633917796,3.2078,3843.7,3843.1,4.50845]
[1753633918096,3.7489,3843.7,3843.6,1.285]
[1753633918291,3.7489,3843.7,3843.1,3.7684]
[1753633918292,1.8399,3843.4,3843.1,0.5594]
[1753633918494,0.5411,3843.3,3843.2,0.52024]
[1753633919084,1.69985214,3843.3,3843.2,0.7256]
[1753633919285,1.2423,3843.6,3843.0,3.2078]
[1753633919592,3.1856,3843.5,3843.4,0.52022]
[1753633919989,3.7489,3843.7,3843.6,0.52019]
[1753633920295,0.5202,3843.6,3843.5,1.8052]
[1753633920494,0.63859426,3843.6,3843.5,2.36581]
[1753633921292,0.63859426,3843.6,3843.5,1.80521]
[1753633922995,1.90179426,3843.6,3843.5,0.7256]
[1753633923195,4.46037335,3845.3,3843.5,0.7256]
[1753633923196,0.5411,3844.7,3843.8,2.02602]
[1753633923405,1.2632,3845.3,3844.6,1.285]
[1753633923699,0.51996,3845.4,3845.3,1.285]
[1753633923895,5.00436,3845.3,3845.2,3.72778]
[1753633924092,3.9433,3845.3,3844.9,0.52001]
[1753633924294,1.1178,3845.0,3844.7,3.2078]
[1753633924600,1.2988,3844.7,3844.3,3.72789]
[1753633924794,1.2988,3844.4,3844.3,3.72789]
[1753633924996,5.00449,3844.4,3844.3,3.2078]
[1753633925198,0.5411,3844.4,3844.3,5.0129]
[1753633925500,0.52009,3844.4,3844.3,3.2078]
[1753633925692,2.35999,3844.4,3844.3,3.2078]
[1753633926493,1.8399,3844.3,3844.2,3.2078]
[1753633926704,1.8399,3844.1,3844.0,0.52013]
[1753633927097,0.5411,3844.1,3844.0,0.52013]
[1753633927296,1.06123,3844.1,3844.0,1.285]
[1753633927496,0.52014,3844.0,3843.8,3.72796]
[1753633927692,0.5411,3843.9,3843.8,3.72797]
[1753633928098,1.06125,3843.9,3843.8,3.2078]
[1753633928297,2.36005,3843.9,3843.8,3.2078]
[1753633928497,5.00455,3843.9,3843.8,3.2078]
[1753633928898,1.2988,3844.8,3843.8,4.4928]
[1753633929095,1.30007,3844.9,3844.3,3.2078]
[1753633929296,0.52009,3844.4,3844.3,3.2078]
[1753633929498,0.5411,3844.4,3844.3,4.4928]
[1753633929696,1.8399,3844.5,3844.3,3.2078]
[1753633929899,5.00449,3844.4,3844.3,3.2078]
[1753633930293,4.4844,3844.4,3844.3,3.2078]
[1753633930496,0.5411,3844.4,3844.3,5.0129]